[Event "*** Titled Tuesday Blitz"]
[Site "Chess.com"]
[Date "2021.03.02"]
[Round "11"]
[White "Aygehovit1992"]
[Black "superchess02"]
[Result "0-1"]
[WhiteElo "2632"]
[BlackElo "2778"]
[TimeControl "180+1"]
[EndTime "12:08:58 PST"]
[Termination "superchess02 won by checkmate"]

1. e4 {[%clk 0:02:56.8]} 1... c5 {[%clk 0:03:00.6]} 2. Nf3 {[%clk 0:02:55.4]}
2... d6 {[%clk 0:03:01.2]} 3. d4 {[%clk 0:02:55.7]} 3... cxd4 {[%clk 0:03:02.1]}
4. Nxd4 {[%clk 0:02:56.6]} 4... Nf6 {[%clk 0:03:03]} 5. Nc3 {[%clk 0:02:56.7]}
5... a6 {[%clk 0:03:03.9]} 6. Bg5 {[%clk 0:02:56.6]} 6... e6 {[%clk 0:03:04.8]}
7. f4 {[%clk 0:02:56.5]} 7... Qc7 {[%clk 0:03:05.2]} 8. Qf3 {[%clk 0:02:56.4]}
8... b5 {[%clk 0:03:05.7]} 9. O-O-O {[%clk 0:02:57]} 9... b4 {[%clk 0:03:04.3]}
10. e5 {[%clk 0:02:29.4]} 10... Bb7 {[%clk 0:02:59.5]} 11. Qh3 {[%clk
0:02:04.5]} 11... bxc3 {[%clk 0:02:38.2]} 12. exf6 {[%clk 0:02:02.9]} 12... Bd5
{[%clk 0:02:38.6]} 13. Nf5 {[%clk 0:01:44.5]} 13... cxb2+ {[%clk 0:02:35]} 14.
Kb1 {[%clk 0:01:43.9]} 14... Qa5 {[%clk 0:02:27.2]} 15. Rxd5 {[%clk 0:01:43.1]}
15... Qxd5 {[%clk 0:02:11.6]} 16. fxg7 {[%clk 0:01:42.2]} 16... Bxg7 {[%clk
0:01:57.6]} 17. Nxg7+ {[%clk 0:01:43.1]} 17... Kd7 {[%clk 0:01:58.2]} 18. Nh5
{[%clk 0:01:41.6]} 18... Qd1+ {[%clk 0:01:55.7]} 19. Kxb2 {[%clk 0:01:41.4]}
19... Nc6 {[%clk 0:01:54.8]} 20. Nf6+ {[%clk 0:00:40.9]} 20... Kc7 {[%clk
0:01:54]} 21. Qe3 {[%clk 0:00:25.4]} 21... Rhb8+ {[%clk 0:01:49.2]} 22. Kc3
{[%clk 0:00:25.5]} 22... Nb4 {[%clk 0:01:42.9]} 23. Ne8+ {[%clk 0:00:21]} 23...
Rxe8 {[%clk 0:01:32.8]} 24. Kxb4 {[%clk 0:00:20.5]} 24... Reb8+ {[%clk
0:01:24.9]} 25. Kc3 {[%clk 0:00:19.9]} 25... Rb6 {[%clk 0:01:25]} 26. Qe4 {[%clk
0:00:17.2]} 26... d5 {[%clk 0:00:30]} 27. Qe5+ {[%clk 0:00:14.7]} 27... Rd6
{[%clk 0:00:26.4]} 28. Be7 {[%clk 0:00:06.3]} 28... d4+ {[%clk 0:00:26.7]} 29.
Kc4 {[%clk 0:00:02.5]} 29... Qxc2+ {[%clk 0:00:26.5]} 30. Kb4 {[%clk 0:00:02.6]}
30... Rb8+ {[%clk 0:00:26.6]} 31. Ka3 {[%clk 0:00:02.7]} 31... Qb2+ {[%clk
0:00:26.1]} 32. Ka4 {[%clk 0:00:02.3]} 32... Qxa2# {[%clk 0:00:26.7]} 0-1

[Event "*** Titled Tuesday Blitz"]
[Site "Chess.com"]
[Date "2021.03.02"]
[Round "11"]
[White "Sibelephant"]
[Black "mishanick"]
[Result "1/2-1/2"]
[WhiteElo "3083"]
[BlackElo "3028"]
[TimeControl "180+1"]
[EndTime "12:09:00 PST"]
[Termination "Game drawn by agreement"]

1. Nf3 {[%clk 0:02:59.8]} 1... d5 {[%clk 0:02:55.8]} 2. e3 {[%clk 0:03:00]} 2...
Nf6 {[%clk 0:02:56.1]} 3. c4 {[%clk 0:03:00]} 3... e6 {[%clk 0:02:55.9]} 4. Nc3
{[%clk 0:03:00.1]} 4... Bd6 {[%clk 0:02:56.3]} 5. b3 {[%clk 0:03:00]} 5... O-O
{[%clk 0:02:56.1]} 6. Bb2 {[%clk 0:03:00.6]} 6... Re8 {[%clk 0:02:56.5]} 7. d4
{[%clk 0:02:55.4]} 7... Nbd7 {[%clk 0:02:50.3]} 8. Be2 {[%clk 0:02:40.9]} 8...
b6 {[%clk 0:02:46.3]} 9. Rc1 {[%clk 0:02:24.1]} 9... Bb7 {[%clk 0:02:46.1]} 10.
O-O {[%clk 0:02:22]} 10... a6 {[%clk 0:02:44.7]} 11. Qc2 {[%clk 0:02:18]} 11...
Ne4 {[%clk 0:02:36.9]} 12. Rfd1 {[%clk 0:01:13.9]} 12... f5 {[%clk 0:02:28.5]}
13. g3 {[%clk 0:01:13.4]} 13... Qe7 {[%clk 0:02:23.3]} 14. cxd5 {[%clk
0:00:55.1]} 14... exd5 {[%clk 0:02:24.2]} 15. Bf1 {[%clk 0:00:55.4]} 15... Rf8
{[%clk 0:02:12.4]} 16. Ne2 {[%clk 0:00:49.3]} 16... Rae8 {[%clk 0:02:09.8]} 17.
Nf4 {[%clk 0:00:49.5]} 17... g5 {[%clk 0:01:33.3]} 18. Nd3 {[%clk 0:00:49.3]}
18... f4 {[%clk 0:01:33.9]} 19. exf4 {[%clk 0:00:47.3]} 19... gxf4 {[%clk
0:01:34.8]} 20. Bg2 {[%clk 0:00:39.1]} 20... fxg3 {[%clk 0:01:33.8]} 21. fxg3
{[%clk 0:00:37.8]} 21... Rf7 {[%clk 0:01:15.4]} 22. Rf1 {[%clk 0:00:33.7]} 22...
Ref8 {[%clk 0:01:15.3]} 23. Rce1 {[%clk 0:00:26.7]} 23... Rf6 {[%clk 0:01:04.7]}
24. Nde5 {[%clk 0:00:23]} 24... Nxe5 {[%clk 0:01:01.9]} 25. Nxe5 {[%clk
0:00:22.1]} 25... Rf2 {[%clk 0:00:54.3]} 26. Rxf2 {[%clk 0:00:16.8]} 26... Rxf2
{[%clk 0:00:54.7]} 27. Re2 {[%clk 0:00:13.2]} 27... Rxe2 {[%clk 0:00:44.6]} 28.
Qxe2 {[%clk 0:00:14.1]} 28... Bxe5 {[%clk 0:00:33.3]} 29. dxe5 {[%clk 0:00:15]}
29... Qc5+ {[%clk 0:00:29.4]} 30. Kf1 {[%clk 0:00:15.2]} 30... Qf8+ {[%clk
0:00:28.7]} 31. Kg1 {[%clk 0:00:15.5]} 31... Qc5+ {[%clk 0:00:24.6]} 32. Kf1
{[%clk 0:00:15.8]} 32... Bc6 {[%clk 0:00:15.8]} 33. Bxe4 {[%clk 0:00:12.2]}
1/2-1/2

[Event "*** Titled Tuesday Blitz"]
[Site "Chess.com"]
[Date "2021.03.02"]
[Round "11"]
[White "redblizzard"]
[Black "Witik"]
[Result "1-0"]
[WhiteElo "2454"]
[BlackElo "2671"]
[TimeControl "180+1"]
[EndTime "12:09:00 PST"]
[Termination "redblizzard won by resignation"]

1. e4 {[%clk 0:02:31]} 1... c6 {[%clk 0:02:59]} 2. Nf3 {[%clk 0:02:31]} 2... d6
{[%clk 0:02:59.3]} 3. Nc3 {[%clk 0:02:31.1]} 3... h6 {[%clk 0:02:59.7]} 4. d4
{[%clk 0:02:30.7]} 4... g5 {[%clk 0:02:59.9]} 5. h3 {[%clk 0:02:29.6]} 5... Bg7
{[%clk 0:03:00.1]} 6. Be3 {[%clk 0:02:29.7]} 6... Nd7 {[%clk 0:03:00.3]} 7. Qd2
{[%clk 0:02:30.2]} 7... Nf8 {[%clk 0:03:00.6]} 8. O-O-O {[%clk 0:02:30.1]} 8...
Ng6 {[%clk 0:03:00.9]} 9. Kb1 {[%clk 0:02:30.4]} 9... Nf6 {[%clk 0:02:53.5]} 10.
Bd3 {[%clk 0:02:26.8]} 10... e5 {[%clk 0:02:48.9]} 11. Ne2 {[%clk 0:02:18.9]}
11... Be6 {[%clk 0:02:38.5]} 12. Ng3 {[%clk 0:02:15.4]} 12... O-O {[%clk
0:02:32.4]} 13. Nf5 {[%clk 0:02:14.7]} 13... Bxf5 {[%clk 0:02:29.5]} 14. exf5
{[%clk 0:02:14.6]} 14... Nf4 {[%clk 0:02:14.1]} 15. Bxf4 {[%clk 0:01:57.3]}
15... exf4 {[%clk 0:02:08.9]} 16. h4 {[%clk 0:01:53.3]} 16... g4 {[%clk
0:01:53.7]} 17. Nh2 {[%clk 0:01:52.7]} 17... g3 {[%clk 0:01:25.9]} 18. fxg3
{[%clk 0:01:50.6]} 18... fxg3 {[%clk 0:01:25.8]} 19. Nf3 {[%clk 0:01:50.9]}
19... Qb6 {[%clk 0:01:20.8]} 20. Rh3 {[%clk 0:01:45.2]} 20... Kh8 {[%clk
0:00:57.4]} 21. Rxg3 {[%clk 0:01:44.6]} 21... c5 {[%clk 0:00:47.1]} 22. Rh3
{[%clk 0:01:07.8]} 22... cxd4 {[%clk 0:00:38.2]} 23. g4 {[%clk 0:01:02.9]} 23...
Nd5 {[%clk 0:00:38.2]} 24. Rg1 {[%clk 0:01:00.1]} 24... Nc3+ {[%clk 0:00:19.3]}
25. Ka1 {[%clk 0:00:57.2]} 25... Qa5 {[%clk 0:00:19.2]} 26. bxc3 {[%clk
0:00:44.2]} 26... dxc3 {[%clk 0:00:19.3]} 27. Qc1 {[%clk 0:00:44.7]} 27... Rfe8
{[%clk 0:00:14.5]} 28. f6 {[%clk 0:00:39.9]} 28... Bf8 {[%clk 0:00:12.8]} 29. g5
{[%clk 0:00:39.6]} 29... Qb4 {[%clk 0:00:09.5]} 30. g6 {[%clk 0:00:24.4]} 30...
fxg6 {[%clk 0:00:09.5]} 31. Rxg6 {[%clk 0:00:24.9]} 31... Qb2+ {[%clk
0:00:07.2]} 32. Qxb2 {[%clk 0:00:24.4]} 32... cxb2+ {[%clk 0:00:08.1]} 33. Kxb2
{[%clk 0:00:25.2]} 33... Re3 {[%clk 0:00:08.2]} 34. Rhg3 {[%clk 0:00:22.2]} 1-0

[Event "*** Titled Tuesday Blitz"]
[Site "Chess.com"]
[Date "2021.03.02"]
[Round "11"]
[White "Loy_Konstantin"]
[Black "sau6on"]
[Result "0-1"]
[WhiteElo "2352"]
[BlackElo "2503"]
[TimeControl "180+1"]
[EndTime "12:09:00 PST"]
[Termination "sau6on won by checkmate"]

1. e4 {[%clk 0:03:00.9]} 1... c5 {[%clk 0:02:58.7]} 2. Nf3 {[%clk 0:03:00.6]}
2... d6 {[%clk 0:02:58.3]} 3. d4 {[%clk 0:03:01.1]} 3... cxd4 {[%clk 0:02:58.5]}
4. Qxd4 {[%clk 0:03:02]} 4... Nc6 {[%clk 0:02:57.2]} 5. Bb5 {[%clk 0:03:02.3]}
5... Bd7 {[%clk 0:02:57.7]} 6. Bxc6 {[%clk 0:03:02.5]} 6... Bxc6 {[%clk
0:02:58.6]} 7. Nc3 {[%clk 0:03:03.1]} 7... h6 {[%clk 0:02:57.6]} 8. O-O {[%clk
0:02:56.5]} 8... e5 {[%clk 0:02:54.2]} 9. Qd3 {[%clk 0:02:56.7]} 9... Nf6 {[%clk
0:02:54.6]} 10. Nd2 {[%clk 0:02:52.6]} 10... Qc7 {[%clk 0:02:41.4]} 11. Nc4
{[%clk 0:02:48.5]} 11... Nxe4 {[%clk 0:02:38.9]} 12. Nxe4 {[%clk 0:02:42.2]}
12... d5 {[%clk 0:02:33.2]} 13. Nxe5 {[%clk 0:02:09.5]} 13... Qxe5 {[%clk
0:02:05.9]} 14. Ng3 {[%clk 0:01:55.5]} 14... O-O-O {[%clk 0:01:57.4]} 15. Bd2
{[%clk 0:01:47.4]} 15... d4 {[%clk 0:01:34.2]} 16. Rfe1 {[%clk 0:01:42.1]} 16...
Qd5 {[%clk 0:01:33.7]} 17. Qf5+ {[%clk 0:01:34.7]} 17... Kc7 {[%clk 0:01:30.3]}
18. Qxd5 {[%clk 0:01:34.3]} 18... Rxd5 {[%clk 0:01:30.1]} 19. Bf4+ {[%clk
0:01:34.1]} 19... Kb6 {[%clk 0:01:27.5]} 20. Rad1 {[%clk 0:01:15.8]} 20... Bb4
{[%clk 0:01:24.4]} 21. Re5 {[%clk 0:01:16]} 21... Rhd8 {[%clk 0:01:17.2]} 22.
Rxd5 {[%clk 0:01:14.3]} 22... Rxd5 {[%clk 0:01:16.7]} 23. a3 {[%clk 0:01:14.8]}
23... Be7 {[%clk 0:01:13.3]} 24. Ne2 {[%clk 0:01:00]} 24... g5 {[%clk
0:00:59.5]} 25. Bc1 {[%clk 0:00:56.3]} 25... Bf6 {[%clk 0:00:58.6]} 26. Ng3
{[%clk 0:00:31.1]} 26... Rc5 {[%clk 0:00:53.2]} 27. Rd2 {[%clk 0:00:25.3]} 27...
Be5 {[%clk 0:00:39.9]} 28. Ne2 {[%clk 0:00:24.2]} 28... Rd5 {[%clk 0:00:30.7]}
29. g3 {[%clk 0:00:23.5]} 29... f5 {[%clk 0:00:23]} 30. b3 {[%clk 0:00:22.9]}
30... Kc7 {[%clk 0:00:11.8]} 31. Bb2 {[%clk 0:00:22.7]} 31... d3 {[%clk
0:00:12]} 32. cxd3 {[%clk 0:00:22.7]} 32... Bxb2 {[%clk 0:00:11.2]} 33. Rxb2
{[%clk 0:00:23.6]} 33... Rxd3 {[%clk 0:00:11.5]} 34. Kf1 {[%clk 0:00:19.3]}
34... Rd1# {[%clk 0:00:10.3]} 0-1

[Event "*** Titled Tuesday Blitz"]
[Site "Chess.com"]
[Date "2021.03.02"]
[Round "11"]
[White "Frogo47"]
[Black "lamomiablanca"]
[Result "1-0"]
[WhiteElo "2537"]
[BlackElo "2381"]
[TimeControl "180+1"]
[EndTime "12:09:01 PST"]
[Termination "Frogo47 won by checkmate"]

1. d4 {[%clk 0:03:00.9]} 1... Nf6 {[%clk 0:02:59.1]} 2. c4 {[%clk 0:03:00.4]}
2... c5 {[%clk 0:02:58.5]} 3. d5 {[%clk 0:03:00.2]} 3... e5 {[%clk 0:02:58.6]}
4. Nc3 {[%clk 0:02:59.7]} 4... d6 {[%clk 0:02:58.8]} 5. e4 {[%clk 0:03:00.3]}
5... Nbd7 {[%clk 0:02:57.3]} 6. g3 {[%clk 0:03:00.6]} 6... g6 {[%clk 0:02:55.3]}
7. Bg2 {[%clk 0:03:00.7]} 7... Bg7 {[%clk 0:02:54.9]} 8. Nge2 {[%clk 0:03:01.4]}
8... O-O {[%clk 0:02:54.9]} 9. O-O {[%clk 0:03:02]} 9... a6 {[%clk 0:02:54.8]}
10. a4 {[%clk 0:03:01.5]} 10... b6 {[%clk 0:02:53.2]} 11. h3 {[%clk 0:03:01.4]}
11... Nh5 {[%clk 0:02:48.5]} 12. g4 {[%clk 0:02:59.1]} 12... Nhf6 {[%clk
0:02:40.1]} 13. Be3 {[%clk 0:02:59.1]} 13... Ne8 {[%clk 0:02:39.9]} 14. Qd2
{[%clk 0:02:56]} 14... a5 {[%clk 0:02:31.8]} 15. b3 {[%clk 0:02:46.9]} 15... Kh8
{[%clk 0:02:31]} 16. Rae1 {[%clk 0:02:38.3]} 16... Nef6 {[%clk 0:02:28.4]} 17.
f4 {[%clk 0:02:35.9]} 17... exf4 {[%clk 0:02:25]} 18. Bxf4 {[%clk 0:02:32.3]}
18... Ne8 {[%clk 0:02:24.3]} 19. Nc1 {[%clk 0:02:31.7]} 19... Ne5 {[%clk
0:02:23.7]} 20. Nd3 {[%clk 0:02:31.7]} 20... Qe7 {[%clk 0:02:22.5]} 21. Nb5
{[%clk 0:02:21.1]} 21... Bd7 {[%clk 0:02:15.4]} 22. Nc3 {[%clk 0:02:07.3]} 22...
Nxd3 {[%clk 0:02:11]} 23. Qxd3 {[%clk 0:02:07]} 23... Be5 {[%clk 0:02:10.9]} 24.
Qd2 {[%clk 0:01:46.2]} 24... f6 {[%clk 0:02:00.4]} 25. Ne2 {[%clk 0:01:41.4]}
25... Ng7 {[%clk 0:01:54.1]} 26. Rf2 {[%clk 0:01:34]} 26... Rae8 {[%clk
0:01:51.4]} 27. Ref1 {[%clk 0:01:32.8]} 27... g5 {[%clk 0:01:44.1]} 28. Bxe5
{[%clk 0:01:18.4]} 28... Qxe5 {[%clk 0:01:33.8]} 29. Qc3 {[%clk 0:01:17.8]}
29... Kg8 {[%clk 0:01:27.4]} 30. Rxf6 {[%clk 0:01:13.8]} 30... Rxf6 {[%clk
0:01:17.3]} 31. Rxf6 {[%clk 0:01:13.4]} 31... Qe7 {[%clk 0:01:11.3]} 32. Ng3
{[%clk 0:01:00.6]} 32... Rf8 {[%clk 0:00:57.4]} 33. e5 {[%clk 0:00:53.3]} 33...
dxe5 {[%clk 0:00:54]} 34. Rxb6 {[%clk 0:00:50.6]} 34... h5 {[%clk 0:00:27.4]}
35. Rg6 {[%clk 0:00:45.3]} 35... Qf7 {[%clk 0:00:22.2]} 36. Rxg5 {[%clk
0:00:41.3]} 36... Qf2+ {[%clk 0:00:21]} 37. Kh2 {[%clk 0:00:41.5]} 37... h4
{[%clk 0:00:21.2]} 38. Nh5 {[%clk 0:00:38.5]} 38... Kh8 {[%clk 0:00:18.8]} 39.
Rxg7 {[%clk 0:00:36.8]} 39... Be8 {[%clk 0:00:17.8]} 40. Qxe5 {[%clk 0:00:33.4]}
40... Bc6 {[%clk 0:00:12]} 41. Rf7+ {[%clk 0:00:32.9]} 41... Kg8 {[%clk
0:00:11.8]} 42. Qg7# {[%clk 0:00:32.8]} 1-0

[Event "*** Titled Tuesday Blitz"]
[Site "Chess.com"]
[Date "2021.03.02"]
[Round "11"]
[White "Marty435"]
[Black "ram1zan"]
[Result "1-0"]
[WhiteElo "2559"]
[BlackElo "2901"]
[TimeControl "180+1"]
[EndTime "12:09:03 PST"]
[Termination "Marty435 won by checkmate"]

1. e4 {[%clk 0:03:00.9]} 1... Nf6 {[%clk 0:03:00.9]} 2. e5 {[%clk 0:02:59.5]}
2... Nd5 {[%clk 0:03:01.1]} 3. d4 {[%clk 0:03:00.1]} 3... d6 {[%clk 0:03:01.3]}
4. Nf3 {[%clk 0:03:00.8]} 4... dxe5 {[%clk 0:03:01]} 5. Nxe5 {[%clk 0:03:01.7]}
5... c6 {[%clk 0:03:01.6]} 6. Be2 {[%clk 0:03:01.3]} 6... Bf5 {[%clk 0:03:00.8]}
7. O-O {[%clk 0:02:50]} 7... Nd7 {[%clk 0:02:55.8]} 8. Nf3 {[%clk 0:02:49.2]}
8... e6 {[%clk 0:02:54.8]} 9. c4 {[%clk 0:02:47.4]} 9... N5f6 {[%clk 0:02:52.8]}
10. Nh4 {[%clk 0:02:47.5]} 10... Bg6 {[%clk 0:02:52.1]} 11. Nc3 {[%clk
0:02:44.2]} 11... Bd6 {[%clk 0:02:52.2]} 12. f4 {[%clk 0:02:43.4]} 12... O-O
{[%clk 0:02:49.9]} 13. Nxg6 {[%clk 0:02:23.7]} 13... hxg6 {[%clk 0:02:50.8]} 14.
Be3 {[%clk 0:02:14]} 14... Qc7 {[%clk 0:02:46.5]} 15. Bf3 {[%clk 0:02:04.9]}
15... g5 {[%clk 0:02:44.1]} 16. fxg5 {[%clk 0:01:52.9]} 16... Bxh2+ {[%clk
0:02:45]} 17. Kh1 {[%clk 0:01:53.5]} 17... Nh7 {[%clk 0:02:43]} 18. g6 {[%clk
0:01:32.9]} 18... fxg6 {[%clk 0:02:40.9]} 19. Bg4 {[%clk 0:01:33.4]} 19... Rae8
{[%clk 0:02:39.2]} 20. Qd3 {[%clk 0:01:26.2]} 20... Qg3 {[%clk 0:02:28.5]} 21.
Bh3 {[%clk 0:00:51.2]} 21... g5 {[%clk 0:02:17.5]} 22. Ne4 {[%clk 0:00:41.3]}
22... Qh4 {[%clk 0:02:16.8]} 23. Kxh2 {[%clk 0:00:28.8]} 23... g4 {[%clk
0:02:15.6]} 24. Bf2 {[%clk 0:00:25.4]} 24... Qh5 {[%clk 0:02:12]} 25. Ng3 {[%clk
0:00:25.1]} 25... Qh6 {[%clk 0:02:12.3]} 26. Be3 {[%clk 0:00:19.4]} 26... g5
{[%clk 0:02:11.6]} 27. Rxf8+ {[%clk 0:00:09]} 27... Rxf8 {[%clk 0:02:11.5]} 28.
Rf1 {[%clk 0:00:09.6]} 28... Rxf1 {[%clk 0:02:11]} 29. Qxf1 {[%clk 0:00:09.5]}
29... gxh3 {[%clk 0:02:11.9]} 30. gxh3 {[%clk 0:00:10.1]} 30... Nhf6 {[%clk
0:02:11.6]} 31. Kg2 {[%clk 0:00:06.3]} 31... Qg6 {[%clk 0:02:11.7]} 32. Qe2
{[%clk 0:00:04.9]} 32... g4 {[%clk 0:02:06.8]} 33. Bf2 {[%clk 0:00:01.1]} 33...
gxh3+ {[%clk 0:02:06.7]} 34. Kxh3 {[%clk 0:00:02]} 34... e5 {[%clk 0:02:06.9]}
35. dxe5 {[%clk 0:00:02]} 35... Qh7+ {[%clk 0:02:00.2]} 36. Kg2 {[%clk
0:00:02.6]} 36... Ne8 {[%clk 0:01:59]} 37. e6 {[%clk 0:00:03]} 37... Ndf6 {[%clk
0:01:57.2]} 38. Qf3 {[%clk 0:00:03.4]} 38... Qe7 {[%clk 0:01:53.6]} 39. Qf5
{[%clk 0:00:02.9]} 39... Ng7 {[%clk 0:01:54.1]} 40. Qg6 {[%clk 0:00:02.4]} 40...
Qxe6 {[%clk 0:01:54.5]} 41. Bd4 {[%clk 0:00:01.5]} 41... Ne8 {[%clk 0:01:51.8]}
42. Qxe6+ {[%clk 0:00:02.2]} 42... Nxe6 {[%clk 0:01:52.7]} 43. Bxa7 {[%clk
0:00:02.8]} 43... Kf7 {[%clk 0:01:51.3]} 44. Ne4 {[%clk 0:00:02.8]} 44... Kg6
{[%clk 0:01:48.8]} 45. Kf3 {[%clk 0:00:02.9]} 45... Kf5 {[%clk 0:01:49]} 46. Ke3
{[%clk 0:00:03.1]} 46... Ke5 {[%clk 0:01:48.2]} 47. b3 {[%clk 0:00:03]} 47...
N8g7 {[%clk 0:01:46.8]} 48. Nc5 {[%clk 0:00:02.5]} 48... Nf5+ {[%clk 0:01:46.9]}
49. Kd3 {[%clk 0:00:02.3]} 49... Nf4+ {[%clk 0:01:46.9]} 50. Kc3 {[%clk
0:00:02.5]} 50... b5 {[%clk 0:01:47.8]} 51. cxb5 {[%clk 0:00:02.4]} 51... cxb5
{[%clk 0:01:48.7]} 52. Kb4 {[%clk 0:00:02.9]} 52... Nd6 {[%clk 0:01:46.6]} 53.
Bb8 {[%clk 0:00:02.8]} 53... Nd5+ {[%clk 0:01:46.8]} 54. Ka5 {[%clk 0:00:02.4]}
54... b4 {[%clk 0:01:42.8]} 55. Nb7 {[%clk 0:00:02.3]} 55... Kd4 {[%clk
0:01:42.4]} 56. Nxd6 {[%clk 0:00:02.5]} 56... Kc3 {[%clk 0:01:42.4]} 57. Nb5+
{[%clk 0:00:02.4]} 57... Kb2 {[%clk 0:01:42.6]} 58. Nd4 {[%clk 0:00:02.1]} 58...
Kxa2 {[%clk 0:01:43]} 59. Bd6 {[%clk 0:00:02.5]} 59... Kb2 {[%clk 0:01:42.3]}
60. Bxb4 {[%clk 0:00:02.9]} 60... Nxb4 {[%clk 0:01:42.8]} 61. Kxb4 {[%clk
0:00:03.8]} 61... Kc1 {[%clk 0:01:43.7]} 62. Kc4 {[%clk 0:00:04.3]} 62... Kd1
{[%clk 0:01:44.6]} 63. b4 {[%clk 0:00:05.1]} 63... Ke1 {[%clk 0:01:45.5]} 64. b5
{[%clk 0:00:06]} 64... Kf1 {[%clk 0:01:46.3]} 65. b6 {[%clk 0:00:06.9]} 65...
Kg1 {[%clk 0:01:47.2]} 66. b7 {[%clk 0:00:07.8]} 66... Kh1 {[%clk 0:01:48.1]}
67. b8=Q {[%clk 0:00:07.9]} 67... Kg2 {[%clk 0:01:47.4]} 68. Qg8+ {[%clk
0:00:07.9]} 68... Kh3 {[%clk 0:01:47.9]} 69. Nf5 {[%clk 0:00:07.4]} 69... Kh2
{[%clk 0:01:47.8]} 70. Ne3 {[%clk 0:00:07.7]} 70... Kh1 {[%clk 0:01:48.7]} 71.
Qg2# {[%clk 0:00:07.7]} 1-0

[Event "*** Titled Tuesday Blitz"]
[Site "Chess.com"]
[Date "2021.03.02"]
[Round "11"]
[White "PSvidler"]
[Black "DenLaz"]
[Result "1-0"]
[WhiteElo "2934"]
[BlackElo "2853"]
[TimeControl "180+1"]
[EndTime "12:09:04 PST"]
[Termination "PSvidler won by resignation"]

1. e4 {[%clk 0:03:00.9]} 1... e5 {[%clk 0:02:58.6]} 2. Nf3 {[%clk 0:03:00.6]}
2... Nc6 {[%clk 0:02:59.1]} 3. Bb5 {[%clk 0:03:00]} 3... a6 {[%clk 0:02:59.6]}
4. Ba4 {[%clk 0:02:59.8]} 4... Nf6 {[%clk 0:03:00]} 5. O-O {[%clk 0:02:59.2]}
5... Be7 {[%clk 0:03:00.4]} 6. d3 {[%clk 0:02:58.7]} 6... b5 {[%clk 0:03:00.4]}
7. Bb3 {[%clk 0:02:58.8]} 7... d6 {[%clk 0:03:00.9]} 8. a4 {[%clk 0:02:56.9]}
8... Bd7 {[%clk 0:03:00.8]} 9. Bd2 {[%clk 0:02:56]} 9... O-O {[%clk 0:02:59.6]}
10. h3 {[%clk 0:02:56.1]} 10... h6 {[%clk 0:02:54.6]} 11. Re1 {[%clk 0:02:55.4]}
11... Re8 {[%clk 0:02:51.9]} 12. Nc3 {[%clk 0:02:52.1]} 12... Na5 {[%clk
0:02:48.7]} 13. Ba2 {[%clk 0:02:51.7]} 13... b4 {[%clk 0:02:42.1]} 14. Ne2
{[%clk 0:02:43.4]} 14... c5 {[%clk 0:02:41.1]} 15. c3 {[%clk 0:02:41]} 15...
bxc3 {[%clk 0:02:40.3]} 16. bxc3 {[%clk 0:02:36.2]} 16... c4 {[%clk 0:02:38.6]}
17. Ng3 {[%clk 0:02:28.3]} 17... cxd3 {[%clk 0:02:36.5]} 18. Be3 {[%clk
0:02:16.8]} 18... Be6 {[%clk 0:02:22.6]} 19. Bxe6 {[%clk 0:02:13.7]} 19... fxe6
{[%clk 0:02:23.5]} 20. Qxd3 {[%clk 0:02:13.7]} 20... Qc7 {[%clk 0:02:22.9]} 21.
Nd2 {[%clk 0:01:31.1]} 21... Rec8 {[%clk 0:02:07.2]} 22. c4 {[%clk 0:01:30.5]}
22... Bf8 {[%clk 0:01:42.5]} 23. Rec1 {[%clk 0:01:27.8]} 23... Nd7 {[%clk
0:01:41.6]} 24. Qe2 {[%clk 0:01:26.3]} 24... Nc5 {[%clk 0:01:36.3]} 25. Bxc5
{[%clk 0:01:21.1]} 25... Qxc5 {[%clk 0:01:35.4]} 26. Qg4 {[%clk 0:01:21]} 26...
Re8 {[%clk 0:01:33.3]} 27. Rab1 {[%clk 0:01:19.7]} 27... Qc7 {[%clk 0:01:29.5]}
28. Rc3 {[%clk 0:01:18.1]} 28... Nc6 {[%clk 0:01:16.7]} 29. Nh5 {[%clk
0:01:12.9]} 29... Kh8 {[%clk 0:01:02.5]} 30. Rcb3 {[%clk 0:01:07.4]} 30... Rab8
{[%clk 0:00:54.7]} 31. Rxb8 {[%clk 0:01:06.6]} 31... Nxb8 {[%clk 0:00:55.6]} 32.
Nf3 {[%clk 0:01:04.4]} 32... Qf7 {[%clk 0:00:47.1]} 33. Nh4 {[%clk 0:01:02.5]}
33... g5 {[%clk 0:00:45]} 34. Nf3 {[%clk 0:00:42.7]} 34... Be7 {[%clk
0:00:26.4]} 35. Rb7 {[%clk 0:00:39.3]} 35... Nc6 {[%clk 0:00:26.7]} 36. h4
{[%clk 0:00:37.1]} 36... Qg6 {[%clk 0:00:22]} 37. hxg5 {[%clk 0:00:36.7]} 37...
Bxg5 {[%clk 0:00:22.6]} 38. Nxg5 {[%clk 0:00:30.1]} 38... Qxg5 {[%clk
0:00:23.5]} 39. Qxg5 {[%clk 0:00:30]} 39... hxg5 {[%clk 0:00:24.2]} 40. Rc7
{[%clk 0:00:28.3]} 1-0